bitfinex/quotes_SOLUSD_20240718
["timestamp","ask_amount","ask_price","bid_price","bid_amount"]
[1721266989047,6.2972,158.8,158.75,6.2991]
[1721266989248,6.2972,158.8,158.76,6.2988]
[1721266989452,6.2969,158.81,158.76,6.2988]
[1721266989878,6.2969,158.81,158.77,7.55781187]
[1721266990175,15.0107,158.83,158.79,6.2975]
[1721266990176,6.2961,158.83,158.79,6.2975]
[1721266990383,6.2956,158.84,158.8,1.25922343]
[1721266990864,6.2956,158.84,158.8,7.55642343]
[1721266991269,6.2953,158.85,158.8,7.55642343]
[1721266991472,15.26,158.84,158.8,7.55642343]
[1721266991678,6.2957,158.84,158.8,7.55642343]
[1721266991854,6.2964,158.82,158.78,22.0422]
[1721266992064,6.2961,158.83,158.78,22.0422]
[1721266992386,6.2957,158.84,158.78,15.7443]
[1721266992575,6.2957,158.84,158.79,6.2975]
[1721266992952,15.26,158.82,158.79,6.2975]
[1721266993158,15.26,158.82,158.78,22.0422]
[1721266993457,15.26,158.81,158.78,15.7443]
[1721266993675,15.26,158.81,158.79,1.25932912]
[1721266994482,15.26,158.81,158.79,7.55682912]
[1721266995384,15.26,158.81,158.8,1.25931822]
[1721266995570,6.2957,158.84,158.79,6.2975]
[1721266996495,15.26,158.81,158.79,6.2975]
[1721266996660,15.26,158.81,158.79,7.55680446]
[1721266997885,15.26,158.81,158.79,6.2975]
[1721266998689,15.26,158.81,158.78,15.7443]
[1721266999269,15.26,158.81,158.78,22.0419]
[1721266999890,15.26,158.81,158.79,1.25935778]
[1721267000198,15.26,158.81,158.79,7.55695778]
[1721267000565,15.26,158.81,158.79,6.2976]
[1721267000989,15.26,158.81,158.79,7.55692862]
[1721267001484,15.26,158.81,158.79,6.2976]
[1721267002096,15.26,158.81,158.79,7.5569287]
[1721267002276,15.26,158.81,158.8,6.2972]
[1721267006889,6.2949,158.86,158.82,6.2963]
[1721267007765,6.2949,158.86,158.81,22.0386]
[1721267008292,15.26,158.82,158.81,22.0386]
[1721267008978,21.6053,158.87,158.82,6.2961]
[1721267009286,21.6053,158.87,158.83,6.296]
[1721267009797,6.2945,158.87,158.83,6.296]
[1721267009968,6.2941,158.88,158.83,6.296]
[1721267010169,22.3465,158.91,158.86,6.2945]
[1721267010673,16.193,158.96,158.92,6.2924]
[1721267010865,6.6455,159.0,158.93,6.2919]
[1721267010866,6.2905,158.97,158.93,6.2919]
[1721267011064,22.8385,159.0,158.88,15.26]
[1721267011285,22.4826,159.0,158.95,6.2911]
[1721267011476,15.26,158.96,158.95,6.2911]
[1721267012079,6.2896,159.0,158.95,6.2911]
[1721267013365,21.5786,159.04,159.0,6.2891]
[1721267013366,15.1159,159.04,159.0,6.2891]
[1721267013581,6.2875,159.05,158.99,7.54738129]
[1721267013777,6.2879,159.04,158.98,22.015]
[1721267013991,6.2882,159.03,158.98,22.015]
[1721267014591,6.2882,159.03,158.98,15.725]
[1721267015979,6.2886,159.02,158.98,15.725]
[1721267016697,6.289,159.01,158.95,44.2815]
[1721267016876,6.289,159.01,158.96,6.2907]
[1721267017071,16.5425865,159.07,158.95,28.4376]
[1721267017072,6.2893,159.0,158.95,28.4376]
[1721267017501,6.2893,159.0,158.95,22.0193]
[1721267017995,6.2889,159.01,158.96,6.2908]
[1721267018175,6.2885,159.02,158.97,6.2904]
[1721267018377,6.2881,159.03,158.98,6.29]
[1721267018573,6.2885,159.02,158.97,6.2904]
[1721267018973,6.2893,159.0,158.95,22.0193]
[1721267019172,45.0,159.01,158.94,6.2916]
[1721267019369,6.2898,158.99,158.94,6.2916]
[1721267020178,6.2903,158.98,158.93,1.25821367]
[1721267020375,6.2904,158.98,158.93,6.2919]
[1721267020742,51.289,159.01,158.94,15.7282]
[1721267020997,6.2893,159.0,158.94,15.7282]
[1721267021209,6.2893,159.0,158.95,1.25809858]
[1721267021409,6.2898,158.99,158.94,15.7282]
[1721267021573,6.2898,158.99,158.94,22.0195]
[1721267021997,6.2898,158.99,158.95,6.2912]
[1721267023286,6.2893,159.0,158.95,6.2912]
[1721267023710,6.2897,158.99,158.94,22.0198]
[1721267024011,6.2902,158.98,158.94,15.7282]
[1721267025210,6.2897,158.99,158.94,22.0197]
[1721267025394,6.2897,158.99,158.94,15.7282]
[1721267025595,6.2897,158.99,158.94,22.0197]
[1721267026977,6.2893,159.0,158.95,6.2912]
[1721267027811,6.2888,159.02,158.97,6.2904]
[1721267028307,6.289,159.01,158.96,22.0172]
[1721267028504,15.26,158.98,158.96,22.0172]
[1721267028888,15.26,158.98,158.97,6.2904]
[1721267030883,15.26,158.98,158.96,22.0171]
[1721267031085,15.26,158.98,158.96,15.7264]
[1721267031893,6.2893,159.0,158.96,15.7264]
[1721267032500,6.2893,159.0,158.96,22.0172]
[1721267032703,6.2893,159.0,158.96,23.27520397]
[1721267033217,6.289,159.01,158.96,22.0172]
[1721267033718,6.2893,159.0,158.96,15.7264]
[1721267034094,6.2897,158.99,158.96,15.7264]
[1721267034615,6.2897,158.99,158.94,6.2915]
[1721267034996,0.8254865,159.07,158.94,1.25813492]
[1721267035200,6.2882,159.03,158.98,6.2897]
[1721267035506,15.26,158.99,158.98,6.2897]
[1721267035816,15.26,158.99,158.97,15.7255]
[1721267035994,6.2889,159.01,158.97,15.7255]
[1721267036391,6.2893,159.0,158.97,15.7255]
[1721267036616,6.2889,159.01,158.97,15.7255]
[1721267036913,6.2893,159.0,158.97,15.7255]
[1721267037115,30.9798,159.04,158.95,6.2912]
[1721267037416,65.0,159.03,158.95,6.2912]
[1721267037617,6.2893,159.0,158.95,6.2912]
[1721267039426,6.2898,158.99,158.95,6.2912]
[1721267040009,6.2906,158.97,158.93,6.2917]
[1721267040188,45.0,158.98,158.93,6.2917]
[1721267040189,6.2901,158.98,158.93,6.2917]
[1721267040823,15.316,159.01,158.92,6.2924]
[1721267040824,6.2905,158.97,158.92,6.2924]
[1721267041021,21.9716,159.01,158.95,6.2911]
[1721267041199,6.2899,158.99,158.94,6.2916]
[1721267041395,6.2905,158.97,158.93,22.0213]
[1721267041808,21.9716,159.01,158.94,6.2915]
[1721267042011,6.2897,158.99,158.94,6.2915]
[1721267042320,6.2897,158.99,158.95,6.2912]
[1721267042527,21.9716,159.01,158.95,6.2912]
[1721267042528,6.2894,159.0,158.95,6.2912]
[1721267042818,45.0,158.99,158.95,6.2912]
[1721267043200,45.0,158.99,158.93,22.0211]
[1721267043401,20.0,159.03,158.96,15.727]
[1721267043594,15.8695,159.05,158.94,52.9894]
[1721267043798,15.26,159.04,158.99,15.7242]
[1721267043999,6.2873,159.05,158.99,15.7242]
[1721267044297,6.2873,159.05,158.99,22.0135]
[1721267044798,6.2873,159.05,159.0,6.2891]
[1721267045110,6.2877,159.04,159.0,6.2891]
[1721267045309,6.2873,159.05,159.0,6.2891]
[1721267046626,6.2878,159.04,158.99,22.0138]
[1721267046805,21.5478,159.04,158.99,22.0138]
[1721267047219,6.2881,159.03,158.99,15.7242]
[1721267047923,45.0,159.02,158.96,15.7271]
[1721267048129,6.2889,159.01,158.96,22.0179]
[1721267049900,6.2889,159.01,158.96,15.7271]
[1721267050102,6.2885,159.02,158.97,6.2904]
[1721267050319,6.2885,159.02,158.98,6.29]
[1721267051825,6.2889,159.01,158.97,6.2904]
[1721267052414,51.2884,159.03,158.98,6.29]
[1721267052617,6.2884,159.03,158.99,6.2896]
[1721267053017,21.5477,159.04,158.99,6.2896]
[1721267053222,21.5477,159.04,158.99,7.54739597]
[1721267053421,21.5477,159.04,158.99,6.2896]
[1721267053422,6.2882,159.03,158.99,6.2896]
[1721267053609,6.2882,159.03,158.98,22.0147]
[1721267054018,6.2882,159.03,158.99,7.5472977]
[1721267054234,21.5478,159.04,158.99,6.2895]
[1721267054627,21.5477,159.04,158.98,15.7247]
[1721267054932,6.2886,159.02,158.98,15.7247]
[1721267055305,15.26,159.04,158.98,15.7247]
[1721267055306,6.2881,159.03,158.98,22.0147]
[1721267055633,6.2881,159.03,158.99,6.2896]
[1721267055840,21.5477,159.04,158.99,6.2896]
[1721267056013,15.26,159.04,159.0,6.2891]
[1721267056710,21.5477,159.04,158.99,6.2896]
[1721267056910,6.2881,159.03,158.99,6.2896]
[1721267059908,21.5477,159.04,158.99,6.2896]
[1721267060838,6.2877,159.04,158.99,6.2896]
[1721267062517,15.26,159.0,158.99,7.54750447]
[1721267062717,15.26,159.0,158.99,6.2897]
[1721267065614,15.26,159.0,158.98,22.0147]
[1721267066947,6.2873,159.05,158.99,1.25787133]
[1721267067238,6.2869,159.06,158.99,1.25787133]
[1721267067454,15.26,159.02,159.01,22.011]
[1721267070830,15.26,159.02,159.01,15.7222]
[1721267072043,15.26,159.02,159.01,15.7222]
[1721267072649,6.2872,159.06,159.01,22.0111]
[1721267073155,6.2872,159.06,159.02,1.25752248]
[1721267073342,6.2872,159.06,159.01,22.0111]
[1721267073513,6.2873,159.05,159.01,22.0111]
[1721267074139,0.8254865,159.07,158.98,15.7248]
[1721267074338,6.2877,159.04,159.0,6.2892]
[1721267074641,6.2874,159.05,159.0,6.2892]
[1721267075025,6.2877,159.04,159.0,6.2892]
[1721267077844,6.2872,159.06,159.01,6.2888]
[1721267078016,51.2873,159.05,159.01,6.2888]
[1721267078216,6.2877,159.04,158.99,6.2896]
[1721267079853,0.8254865,159.07,158.98,31.1525]
[1721267079854,51.2881,159.03,158.98,22.0148]
[1721267080022,6.2881,159.03,158.98,22.0148]
[1721267080752,6.2887,159.02,158.98,22.0148]
[1721267080927,45.0,159.02,158.96,6.2906]
[1721267081230,6.2904,158.98,158.93,6.2919]
[1721267082229,6.2904,158.98,158.92,15.7307]
[1721267082230,6.2897,158.99,158.94,6.2915]
[1721267082539,45.0,158.98,158.95,6.2912]
[1721267082841,51.2901,158.98,158.94,6.2915]
[1721267083247,45.0,158.98,158.94,6.2915]
[1721267083957,51.2901,158.98,158.94,6.2915]
[1721267085140,45.0,158.98,158.94,6.2915]
[1721267085955,45.0,158.98,158.92,22.0228]
[1721267086146,6.2908,158.97,158.92,22.0228]
[1721267086457,45.0,158.96,158.92,22.0228]
[1721267087128,45.0,158.96,158.93,6.292]
[1721267088843,45.0,158.97,158.93,6.292]
[1721267090242,6.2896,159.0,158.94,15.7285]
[1721267090431,6.2896,159.0,158.96,6.2908]
[1721267090756,6.2897,158.99,158.95,6.2911]
[1721267091543,6.2893,159.0,158.95,6.2911]
[1721267091744,45.0,158.99,158.95,6.2911]
[1721267093955,51.2897,158.99,158.95,6.2911]
[1721267095265,45.0,158.99,158.95,6.2911]
[1721267097953,45.0,158.99,158.96,6.2908]
[1721267098158,45.0,158.99,158.95,6.2911]
[1721267098563,51.2897,158.99,158.95,6.2911]
[1721267099362,45.0,158.99,158.96,6.2908]
[1721267099576,6.2889,159.01,158.96,6.2908]
[1721267100361,6.2885,159.02,158.97,6.2902]
[1721267100666,51.2891,159.01,158.96,22.0175]
[1721267100869,6.2893,159.0,158.96,22.0175]
[1721267101159,45.0,159.01,158.97,6.2902]
[1721267101351,51.2885,159.02,158.97,6.2902]
[1721267101952,21.5356,159.03,158.98,6.2898]
[1721267102159,6.2881,159.03,158.98,6.2898]
[1721267102459,23.1691865,159.07,158.93,15.7297]
[1721267102460,21.5497,158.99,158.93,15.7297]
[1721267102635,6.2892,159.01,158.95,6.2911]
[1721267102834,15.7198,159.04,158.95,6.2911]
[1721267103035,6.2895,159.0,158.95,6.2911]
[1721267103307,15.26,158.96,158.93,15.7297]
[1721267103435,16.6292,159.02,158.93,15.7297]
[1721267103631,6.2903,158.98,158.93,22.0216]
[1721267104044,6.2905,158.97,158.93,15.7297]
[1721267104458,6.2905,158.97,158.93,22.0217]
[1721267105062,6.2905,158.97,158.93,15.7297]
[1721267105242,45.0,158.96,158.93,15.7297]
[1721267106177,45.0,158.96,158.9,22.0255]
[1721267106758,45.0,158.96,158.9,15.7326]
[1721267106941,45.0,158.96,158.92,6.2924]
[1721267107160,6.4167,159.01,158.92,15.7302]
[1721267107358,6.2893,159.0,158.95,6.2912]
[1721267107586,6.2893,159.0,158.94,15.7283]
[1721267107587,16.6292,159.02,158.94,15.7283]
[1721267107764,6.2897,158.99,158.94,22.0196]
[1721267108579,6.2901,158.98,158.94,15.7283]
[1721267108789,6.2905,158.97,158.93,21.8128]
[1721267109154,6.2905,158.97,158.92,6.2921]
[1721267109353,6.2905,158.97,158.93,6.292]
[1721267109580,6.2902,158.98,158.93,6.292]
[1721267110154,45.0,158.97,158.93,6.292]
[1721267110359,45.0,158.97,158.94,6.2915]
[1721267110860,45.0,158.97,158.93,6.292]
[1721267111072,51.2905,158.97,158.93,6.292]
[1721267111262,6.2909,158.96,158.91,22.0243]
[1721267111484,45.0,158.95,158.91,22.0243]
[1721267111785,51.2912,158.95,158.91,22.0243]
[1721267112691,51.2912,158.95,158.89,6.2932]
[1721267112692,6.292,158.94,158.89,6.2932]
[1721267112896,45.0,158.93,158.87,22.0294]
[1721267113098,6.2924,158.92,158.87,22.0294]
[1721267113660,45.0,158.91,158.86,6.2948]
[1721267114087,6.2933,158.9,158.85,6.2951]
[1721267114291,15.26,158.86,158.84,15.7386]
[1721267114473,6.294,158.88,158.84,15.7386]
[1721267114698,45.0,158.87,158.84,15.7386]
[1721267115312,51.2945,158.87,158.82,6.2963]
[1721267115512,6.2949,158.86,158.81,15.7418]
[1721267115684,6.2949,158.86,158.81,22.0385]
[1721267115685,45.0,158.85,158.81,22.0385]
[1721267116403,51.2952,158.85,158.81,22.0385]
[1721267116716,51.2952,158.85,158.81,15.7418]
[1721267117222,45.0,158.85,158.81,22.0385]
[1721267117612,51.2953,158.85,158.81,15.7418]
[1721267117790,6.2958,158.84,158.8,6.2971]
[1721267118191,51.2953,158.85,158.8,6.2971]
[1721267120201,45.0,158.85,158.79,15.7432]
[1721267120713,45.0,158.85,158.8,6.2968]
[1721267120916,45.0,158.85,158.81,6.2966]
[1721267122312,51.2952,158.85,158.81,6.2966]
[1721267122991,15.096,158.88,158.81,15.7413]
[1721267123190,15.096,158.88,158.83,6.2959]
[1721267123191,21.3903,158.88,158.83,6.2959]
[1721267124415,15.26,158.84,158.83,6.2959]
[1721267124895,15.26,158.84,158.82,6.2963]
[1721267125091,6.2946,158.87,158.82,6.2963]
[1721267125296,51.2948,158.86,158.81,22.038]
[1721267125693,15.26,158.82,158.81,15.7413]
[1721267126501,15.26,158.82,158.81,22.0381]
[1721267126905,15.26,158.82,158.81,15.7413]
[1721267127618,15.26,158.82,158.81,22.0381]
[1721267128006,15.26,158.82,158.81,15.7413]
[1721267128207,15.26,158.82,158.8,6.2971]
[1721267128504,6.2956,158.84,158.8,6.2971]
[1721267129420,6.296,158.83,158.79,6.2975]
[1721267129606,6.296,158.83,158.78,22.0425]
[1721267129802,15.096,158.88,158.78,15.7446]
[1721267129803,51.2964,158.82,158.78,15.7446]
[1721267130008,6.2968,158.81,158.77,6.2983]
[1721267130793,45.0,158.8,158.77,6.2983]
[1721267131313,45.0,158.81,158.77,6.2983]
[1721267132605,45.0,158.81,158.75,22.0464]
[1721267133339,6.2975,158.8,158.75,22.0464]
[1721267133509,45.0,158.79,158.75,22.0464]
[1721267138201,51.2977,158.79,158.75,15.7475]
[1721267138429,6.298,158.78,158.73,6.2996]
[1721267138728,45.0,158.77,158.74,6.2993]
[1721267138900,51.2976,158.79,158.74,6.2993]
[1721267139099,6.298,158.78,158.74,6.2993]
[1721267139420,45.0,158.77,158.74,6.2993]
[1721267139629,45.0,158.78,158.74,6.2993]
[1721267141124,45.0,158.78,158.75,6.2991]
[1721267141312,45.0,158.78,158.74,6.2995]
[1721267142806,15.26,158.75,158.74,6.2995]
[1721267146428,15.26,158.75,158.72,22.2462]
[1721267146730,51.298,158.78,158.73,6.2996]
[1721267147504,51.298,158.78,158.74,6.2995]
[1721267149243,45.0,158.78,158.74,6.2995]
[1721267149711,45.0,158.78,158.73,6.2999]
[1721267149918,6.2988,158.76,158.72,15.7507]
[1721267150114,45.0,158.79,158.72,15.7507]
[1721267150436,6.2992,158.75,158.72,15.7507]
[1721267150646,45.0,158.74,158.72,15.7507]
[1721267150821,45.0,158.74,158.7,6.3011]
[1721267151012,45.0,158.74,158.69,15.7535]
[1721267151013,6.3001,158.73,158.69,15.7535]
[1721267151218,45.0,158.72,158.69,15.7535]
[1721267151416,6.3,158.73,158.69,15.7535]
[1721267151626,45.0,158.72,158.69,15.7535]
[1721267151822,45.0,158.72,158.69,22.055]
[1721267152143,45.0,158.72,158.66,31.5137]
[1721267152144,6.2984,158.77,158.72,6.3003]
[1721267152307,45.0,158.76,158.72,6.3003]
[1721267153140,51.2989,158.76,158.71,22.0519]
[1721267153313,6.2992,158.75,158.71,15.7512]
[1721267153631,15.26,158.72,158.71,15.7512]
[1721267153834,15.26,158.72,158.69,6.3014]
[1721267154134,6.2995,158.75,158.7,6.301]
[1721267154333,45.0,158.74,158.71,6.3007]
[1721267154639,45.0,158.74,158.69,1.26022959]
[1721267154818,45.0,158.74,158.7,6.301]
[1721267155137,6.2989,158.76,158.71,6.3008]
[1721267155452,45.0,158.75,158.72,6.3003]
[1721267155946,6.2984,158.77,158.72,6.3003]
[1721267156237,6.2981,158.78,158.73,6.2998]
[1721267156551,6.2985,158.77,158.73,6.2998]
[1721267156735,15.26,158.74,158.72,22.0507]
[1721267156923,6.2985,158.77,158.72,22.0507]
[1721267157339,15.0905,158.79,158.74,15.7484]
[1721267157643,6.2966,158.82,158.75,1.25988451]
[1721267157938,6.3788,158.88,158.75,1.25988451]
[1721267157939,15.26,158.8,158.79,6.2975]
[1721267158130,16.2682,158.87,158.8,6.2971]
[1721267158532,6.2954,158.85,158.8,6.2971]
[1721267158729,6.2956,158.84,158.79,6.2976]
[1721267160348,6.2965,158.82,158.77,15.7458]
[1721267160520,51.2968,158.81,158.76,27.6991]
[1721267160721,45.0,158.83,158.76,21.4004]
[1721267160722,6.2972,158.8,158.76,21.4004]
[1721267160915,6.2972,158.8,158.75,7.55875491]
[1721267161121,6.2967,158.82,158.76,6.2987]
[1721267161343,45.0,158.81,158.76,6.2987]
[1721267161520,51.2968,158.81,158.76,6.2987]
[1721267161724,45.0,158.81,158.74,22.0481]
[1721267162617,45.0,158.81,158.75,1.25965364]
[1721267162817,45.0,158.81,158.76,6.2987]
[1721267163047,51.297,158.81,158.76,6.2987]
[1721267163224,6.2972,158.8,158.75,6.2991]
[1721267163934,6.2979,158.79,158.74,15.7488]
[1721267164118,51.2981,158.78,158.74,15.7488]
[1721267164318,45.0,158.81,158.74,22.0484]
[1721267164735,45.0,158.81,158.75,6.2991]
[1721267165141,6.2975,158.8,158.75,6.2991]
[1721267165440,51.2976,158.79,158.74,15.7488]
[1721267165855,51.2976,158.79,158.74,22.0482]
[1721267166143,51.2976,158.79,158.74,23.30807395]
[1721267166340,51.2976,158.79,158.74,22.0483]
[1721267167140,6.298,158.78,158.74,22.0483]
[1721267167560,51.2977,158.79,158.74,22.0483]
[1721267171740,51.2977,158.79,158.75,6.2991]
[1721267172824,51.2977,158.79,158.74,15.7488]
[1721267173030,6.2981,158.78,158.74,15.7488]
[1721267173362,6.2984,158.77,158.73,6.2996]
[1721267174041,6.298,158.78,158.73,6.2996]
[1721267175965,6.2985,158.77,158.73,6.2996]
[1721267176262,6.2985,158.77,158.72,21.7185]
[1721267176740,45.0,158.76,158.72,22.97843491]
[1721267176948,6.2985,158.77,158.73,6.2999]
[1721267177136,45.0,158.79,158.74,6.2994]
[1721267177733,6.2961,158.83,158.78,6.2979]
[1721267177938,15.26,158.8,158.78,6.2979]
[1721267178565,15.26,158.8,158.78,7.55739737]
[1721267179060,6.2957,158.84,158.79,6.2973]
[1721267180064,6.2957,158.84,158.8,7.55645309]
[1721267180261,6.2957,158.84,158.8,6.2971]
[1721267180645,6.2957,158.84,158.78,7.55691119]
[1721267181055,6.2966,158.82,158.78,7.55731119]
[1721267181645,6.2961,158.83,158.79,6.2975]
[1721267181846,6.2957,158.84,158.79,6.2975]
[1721267183266,6.2957,158.84,158.8,1.25932588]
[1721267183557,6.2953,158.85,158.8,7.55642588]
[1721267184066,6.2958,158.84,158.8,7.55642588]
[1721267184440,15.2163,158.96,158.82,15.26]
[1721267184643,15.2163,158.96,158.87,6.2943]
[1721267184644,6.2925,158.92,158.87,6.2943]
[1721267185461,15.26,158.89,158.86,7.55357782]
[1721267185667,15.26,158.89,158.86,1.25877782]
[1721267185967,15.26,158.89,158.86,7.55347782]
[1721267186277,6.2932,158.9,158.86,7.55347782]
[1721267186442,15.7287,158.95,158.87,6.2943]
[1721267186771,6.2925,158.92,158.87,6.2943]
[1721267187260,15.26,158.92,158.89,6.2935]
[1721267188372,15.26,158.92,158.88,7.55261291]
[1721267188569,15.7256,158.98,158.87,15.7356]
[1721267188773,65.0,158.97,158.87,15.7356]
[1721267189077,15.26,158.89,158.87,15.7356]
[1721267189448,6.2925,158.92,158.87,15.7356]
[1721267189655,15.26,158.9,158.88,1.25868092]
[1721267189862,15.26,158.9,158.87,23.28868073]
[1721267190183,15.26,158.9,158.87,15.7356]
[1721267190354,15.26,158.9,158.87,16.99428895]
[1721267190560,15.26,158.9,158.87,23.28858895]
[1721267191363,15.26,158.9,158.88,6.294]
[1721267192669,15.26,158.9,158.87,23.28858895]
[1721267193487,6.2932,158.9,158.85,21.3948]
[1721267194180,16.6591,158.94,158.81,37.6568]
[1721267194383,16.6591,158.94,158.84,6.2955]
[1721267194384,6.2939,158.89,158.84,6.2955]
[1721267194683,6.2939,158.89,158.81,37.6568]
[1721267194684,45.0,158.88,158.81,37.6568]
[1721267194883,45.0,158.88,158.84,6.2955]
[1721267195183,45.0,158.88,158.85,6.2952]
[1721267195485,16.6591,158.94,158.85,7.55421281]
[1721267195785,6.2936,158.89,158.84,6.2955]
[1721267195961,51.2941,158.88,158.84,7.55450062]
[1721267196159,6.2941,158.88,158.83,22.0351]
[1721267196369,6.2945,158.87,158.83,15.7391]
[1721267196577,6.2939,158.89,158.83,15.7391]
[1721267196778,6.2939,158.89,158.84,6.2954]
[1721267197168,6.2939,158.89,158.84,7.55433155]
[1721267198992,6.2941,158.88,158.84,1.25893155]
[1721267200196,80.7307,158.93,158.83,22.0351]
[1721267200364,6.2956,158.84,158.81,23.17430841]
[1721267200571,6.2953,158.85,158.81,23.17430841]
[1721267202073,6.2957,158.84,158.81,23.17430841]
[1721267202277,15.7348,158.89,158.77,37.3659]
[1721267202474,45.0,158.88,158.77,37.3659]
[1721267202994,6.2968,158.81,158.77,43.6642]
[1721267203490,6.2968,158.81,158.78,1.25946816]
[1721267203790,6.2965,158.82,158.78,1.25946816]
[1721267203988,30.7981,158.87,158.77,38.62536317]
[1721267203989,6.297,158.81,158.77,38.62536317]
[1721267204286,6.297,158.81,158.77,37.3659]
[1721267205292,15.26,158.78,158.75,6.2991]
[1721267205672,15.26,158.78,158.76,6.2987]
[1721267209372,6.2965,158.82,158.77,1.25956877]
[1721267209980,6.2965,158.82,158.78,6.2979]
[1721267210196,6.2965,158.82,158.77,6.2983]
[1721267210499,6.2969,158.81,158.76,22.045]
[1721267211469,6.2963,158.83,158.77,1.25946577]
[1721267211677,45.0,158.82,158.76,15.7463]
[1721267211987,51.2965,158.82,158.78,6.2979]
[1721267212181,51.2965,158.82,158.77,7.55776471]
[1721267212601,51.2965,158.82,158.77,6.2983]
[1721267212899,51.2965,158.82,158.78,7.55736556]
[1721267213103,51.2965,158.82,158.77,6.2983]
[1721267213298,6.2968,158.81,158.77,6.2983]
[1721267214101,6.2968,158.81,158.76,22.045]
[1721267214273,45.0,158.8,158.74,6.2992]
[1721267214481,6.2977,158.79,158.74,6.2992]
[1721267215282,6.298,158.78,158.73,22.0495]
[1721267215503,6.2984,158.77,158.73,22.0495]
[1721267215690,6.2984,158.77,158.73,15.7496]
[1721267216002,6.2984,158.77,158.73,22.0495]
[1721267216181,6.2981,158.78,158.73,22.0495]
[1721267219106,6.2977,158.79,158.74,6.2996]
[1721267219274,45.0,158.78,158.74,6.2996]
[1721267220190,23.1425,158.82,158.74,7.55942751]
[1721267220500,6.2977,158.79,158.74,7.55942751]
[1721267221306,21.7142,158.86,158.76,15.7466]
[1721267221507,6.2965,158.82,158.77,7.55748057]
[1721267221706,15.26,158.81,158.78,15.7443]
[1721267221887,15.26,158.81,158.79,7.55665651]
[1721267222207,6.2959,158.84,158.79,7.55665651]
[1721267222377,6.2961,158.83,158.79,7.55665651]
[1721267222578,6.2961,158.83,158.79,1.25935651]
[1721267223488,15.26,158.81,158.78,1.25937041]
[1721267223697,6.2969,158.81,158.78,1.25937041]
[1721267224001,6.2964,158.82,158.77,6.2983]
[1721267224178,6.2961,158.83,158.77,1.25937502]
[1721267224985,6.2961,158.83,158.79,6.2975]
[1721267225191,6.2961,158.83,158.78,6.2979]
[1721267225611,6.2969,158.81,158.77,6.2983]
[1721267226507,51.2965,158.82,158.77,6.2983]
[1721267226810,51.2965,158.82,158.76,22.0452]
[1721267226811,6.2968,158.81,158.76,22.0452]
[1721267229105,6.2968,158.81,158.77,6.2983]
[1721267231020,6.2972,158.8,158.76,15.7465]
[1721267231317,6.298,158.78,158.73,22.0491]
[1721267231528,15.7804,158.81,158.72,6.3002]
[1721267231688,45.0,158.8,158.71,22.7371]
[1721267231997,6.2984,158.77,158.72,6.3003]
[1721267232308,45.0,158.76,158.72,6.3003]
[1721267232801,45.0,158.76,158.73,6.2999]
[1721267233703,45.0,158.76,158.72,6.3002]
[1721267234212,51.2988,158.76,158.72,6.3002]
[1721267234785,51.2988,158.76,158.71,17.69650883]
[1721267234786,6.2995,158.75,158.71,16.4365]
[1721267235086,6.2995,158.75,158.7,15.7526]